bitfinex-derivatives/quotes_SOLF0:USTF0_20250321
["timestamp","ask_amount","ask_price","bid_price","bid_amount"]
[1742536946839,27.86,128.41,128.38,12.13945446]
[1742536947039,27.86,128.41,128.39,19.93085446]
[1742536947341,35.6501,128.42,128.39,19.93085446]
[1742536947840,12.19482436,128.42,128.39,0.05921512]
[1742536948140,27.84,128.41,128.39,0.05921512]
[1742536949243,35.6308,128.41,128.39,0.05921512]
[1742536949833,27.82,128.41,128.39,0.05921512]
[1742536950442,35.6105,128.41,128.39,0.05921512]
[1742536950641,27.82,128.41,128.39,0.05921512]
[1742536951039,39.95945446,128.41,128.36,12.13945446]
[1742536951436,7.792,128.39,128.36,7.7935]
[1742536951645,27.84,128.38,128.36,7.7935]
[1742536952145,35.6324,128.38,128.35,19.93325446]
[1742536952338,35.69235187,128.38,128.36,0.05712899]
[1742536954343,27.89995187,128.38,128.36,7.85052899]
[1742536955448,35.69225187,128.38,128.36,7.85052899]
[1742536955750,35.69225187,128.38,128.36,0.05712899]
[1742536959351,27.89995187,128.38,128.36,7.85052899]
[1742536960147,27.89995187,128.38,128.37,7.7929]
[1742536960352,0.05995187,128.38,128.37,19.93235446]
[1742536960853,0.05995187,128.38,128.37,12.13945446]
[1742536961554,0.05995187,128.38,128.37,19.93235446]
[1742536961851,0.05995187,128.38,128.36,0.05712899]
[1742536962952,0.05995187,128.38,128.36,7.85032899]
[1742536963255,0.05995187,128.38,128.36,0.05712899]
[1742536964059,0.05995187,128.38,128.37,7.7929]
[1742536966559,0.05995187,128.38,128.36,19.98978345]
[1742536970253,7.85255187,128.38,128.36,0.05712899]
[1742536970455,35.59255187,128.38,128.36,0.05712899]
[1742536970857,27.79995187,128.38,128.36,0.05712899]
[1742536972659,27.79995187,128.38,128.36,7.85052899]
[1742536972960,35.59225187,128.38,128.36,0.05712899]
[1742536974071,27.79995187,128.38,128.36,7.85052899]
[1742536974568,27.79995187,128.38,128.36,0.05712899]
[1742536974760,0.05995187,128.38,128.37,19.93235446]
[1742536976567,34.2099,128.43,128.41,7.79]
[1742536977366,41.9992,128.43,128.41,7.79]
[1742536977567,42.0490249,128.43,128.41,7.84067971]
[1742536977866,34.2597249,128.43,128.41,7.84067971]
[1742536978960,31.0440249,128.43,128.42,7.7899]
[1742536979163,3.3040249,128.43,128.42,7.7899]
[1742536979763,3.3040249,128.43,128.41,7.84087971]
[1742536979960,15.44347936,128.43,128.41,0.05067971]
[1742536980158,19.92985446,128.42,128.38,7.792]
[1742536980369,27.72,128.41,128.38,7.792]
[1742536980568,27.72,128.41,128.37,12.13945446]
[1742536980768,27.72,128.41,128.39,7.7915]
[1742536980965,27.72,128.41,128.38,12.13945446]
[1742536981169,27.77844583,128.41,128.38,12.19782079]
[1742536981971,27.77844583,128.41,128.38,19.99012079]
[1742536983071,27.77844583,128.41,128.38,12.19782079]
[1742536983373,35.56924583,128.41,128.38,12.19782079]
[1742536984461,35.56924583,128.41,128.38,19.99002079]
[1742536984968,35.56924583,128.41,128.38,12.19782079]
[1742536985573,7.7911,128.4,128.38,12.19782079]
[1742536986071,35.56914583,128.41,128.38,12.19782079]
[1742536986274,35.56914583,128.41,128.38,19.99012079]
[1742536986673,27.77844583,128.41,128.38,12.19782079]
[1742536987072,27.77844583,128.41,128.39,7.7913]
[1742536987274,27.77844583,128.41,128.38,12.19782079]
[1742536987576,0.05844583,128.41,128.4,12.13945446]
[1742536988078,0.05844583,128.41,128.4,19.93055446]
[1742536993183,0.05844583,128.41,128.4,12.13945446]
[1742536995285,0.05844583,128.41,128.4,19.93055446]
[1742536997796,35.4277,128.46,128.43,7.789]
[1742536997997,35.4277,128.46,128.43,19.92845446]
[1742536998295,35.4677,128.46,128.43,19.92845446]
[1742536998699,7.7881,128.45,128.42,19.92905446]
[1742536998895,12.13945446,128.45,128.43,0.04963952]
[1742536999090,12.13945446,128.44,128.39,12.13945446]
[1742536999289,12.13945446,128.44,128.37,27.68]
[1742536999290,39.81945446,128.43,128.38,12.13945446]
[1742536999497,39.83945446,128.42,128.37,12.13945446]
[1742536999699,27.7,128.41,128.37,12.13945446]
[1742537000398,0.05067608,128.4,128.38,7.84830282]
[1742537000790,0.05067608,128.4,128.38,0.05640282]
[1742537001386,0.05067608,128.4,128.38,7.84840282]
[1742537005102,0.05067608,128.4,128.38,0.05640282]
[1742537005302,3.07517608,128.4,128.38,0.05640282]
[1742537005506,10.86657608,128.4,128.38,0.05640282]
[1742537008709,7.7917,128.39,128.38,0.05640282]
[1742537009204,3.07517608,128.4,128.38,0.05640282]
[1742537010106,15.21463054,128.4,128.34,12.13945446]
[1742537010309,18.51433054,128.4,128.34,12.13945446]
[1742537010504,7.7928,128.38,128.34,19.93385446]
[1742537010696,35.4528,128.38,128.34,12.13945446]
[1742537010899,27.66,128.38,128.34,12.13945446]
[1742537011201,0.0523819,128.37,128.35,7.84530409]
[1742537013804,0.0523819,128.37,128.35,0.05170409]
[1742537014206,7.8453819,128.37,128.35,0.05170409]
[1742537016807,0.0523819,128.37,128.35,0.05170409]
[1742537017299,7.8455819,128.37,128.35,0.05170409]
[1742537017611,12.19183636,128.37,128.35,0.05170409]
[1742537017909,15.22073636,128.37,128.32,12.13945446]
[1742537018307,7.7945,128.35,128.32,12.13945446]
[1742537018508,35.4545,128.35,128.32,12.13945446]
[1742537018708,35.4545,128.35,128.33,12.13945446]
[1742537019102,35.51005446,128.35,128.33,12.13945446]
[1742537020809,7.7947,128.34,128.33,12.13945446]
[1742537021009,7.7947,128.34,128.32,12.19070969]
[1742537021513,35.50995446,128.35,128.32,19.98660969]
[1742537022010,35.50995446,128.35,128.32,12.19070969]
[1742537022206,7.7948,128.34,128.32,12.19070969]
[1742537022809,35.51005446,128.35,128.32,12.19070969]
[1742537023209,27.71555446,128.35,128.32,12.19070969]
[1742537023414,0.05555446,128.35,128.32,12.19070969]
[1742537023909,0.05555446,128.35,128.33,7.7949]
[1742537024508,0.05555446,128.35,128.34,19.93415446]
[1742537028518,46.08365446,128.4,128.37,7.7926]
[1742537028721,33.9442,128.4,128.37,7.7926]
[1742537029020,38.4358,128.4,128.37,7.7926]
[1742537029615,38.48505402,128.4,128.37,7.8482547]
[1742537029812,38.48505402,128.4,128.38,7.7922]
[1742537030013,30.69375402,128.4,128.37,0.0556547]
[1742537030421,3.07375402,128.4,128.37,7.8482547]
[1742537030618,30.67375402,128.4,128.37,7.8482547]
[1742537031120,38.46485402,128.4,128.37,0.0556547]
[1742537031317,38.46485402,128.4,128.37,12.19510916]
[1742537032421,38.46485402,128.4,128.37,0.0556547]
[1742537034024,7.7918,128.39,128.37,0.0556547]
[1742537035313,7.7923,128.38,128.37,0.0556547]
[1742537038627,19.93175446,128.38,128.37,0.0556547]
[1742537039527,7.7923,128.38,128.37,0.0556547]
[1742537042937,23.23135446,128.39,128.37,0.0556547]
[1742537043328,15.43935446,128.39,128.37,0.0556547]
[1742537043631,7.7923,128.38,128.37,0.0556547]
[1742537044037,15.43935446,128.39,128.37,0.0556547]
[1742537044332,7.7923,128.38,128.37,0.0556547]
[1742537046833,19.93145446,128.39,128.37,0.0556547]
[1742537047033,30.67375402,128.4,128.37,0.0556547]
[1742537047529,0.04925402,128.4,128.38,12.13945446]
[1742537047937,0.04925402,128.4,128.39,7.7917]
[1742537051036,0.04925402,128.4,128.39,19.93115446]
[1742537051637,0.04925402,128.4,128.39,47.47115446]
[1742537053634,27.54,128.45,128.43,7.7889]
[1742537054940,27.59067677,128.45,128.43,7.84097533]
[1742537055941,0.05067677,128.45,128.44,7.7886]
[1742537056338,0.05067677,128.45,128.43,0.05207533]
[1742537056936,0.05067677,128.45,128.44,7.7886]
[1742537058046,0.05067677,128.45,128.43,19.98052979]
[1742537058337,0.05067677,128.45,128.43,7.84107533]
[1742537059131,0.05067677,128.45,128.43,0.05207533]
[1742537059638,7.7886,128.44,128.43,0.05207533]
[1742537059836,35.3286,128.44,128.43,0.05207533]
[1742537060744,27.54,128.44,128.43,0.05207533]
[1742537062145,7.83887677,128.45,128.43,0.05207533]
[1742537062543,7.7886,128.44,128.43,0.05207533]
[1742537066039,19.97853123,128.45,128.43,0.05207533]
[1742537066945,7.83907677,128.45,128.43,0.05207533]
[1742537068147,0.05067677,128.45,128.43,7.84127533]
[1742537068342,0.05067677,128.45,128.43,0.05207533]
[1742537068547,0.05067677,128.45,128.44,12.13945446]
[1742537069047,0.05067677,128.45,128.44,19.92805446]
[1742537087061,0.05067677,128.45,128.44,12.13945446]
[1742537088063,0.05067677,128.45,128.44,19.92805446]
[1742537089467,0.05067677,128.45,128.44,12.13945446]
[1742537090261,7.83867677,128.45,128.44,12.13945446]
[1742537091267,7.83867677,128.45,128.43,12.19152979]
[1742537091669,7.7886,128.44,128.43,0.05207533]
[1742537091967,35.3086,128.44,128.43,0.05207533]
[1742537092967,7.7899,128.42,128.38,12.13945446]
[1742537093161,12.13945446,128.43,128.38,12.13945446]
[1742537093668,7.7908,128.41,128.38,19.93145446]
[1742537094170,7.84905797,128.41,128.38,19.98453217]
[1742537094760,39.71771243,128.41,128.38,0.05307771]
[1742537096470,7.7917,128.39,128.38,0.05307771]
[1742537097969,7.7914,128.4,128.38,0.05307771]
[1742537101771,7.7917,128.39,128.38,0.05307771]
[1742537102170,30.62035797,128.41,128.38,0.05307771]
[1742537103077,27.57825797,128.41,128.38,0.05307771]
[1742537103670,27.57825797,128.41,128.38,7.84507771]
[1742537103971,27.57825797,128.41,128.38,0.05307771]
[1742537104171,35.36925797,128.41,128.38,0.05307771]
[1742537104372,27.57825797,128.41,128.38,0.05307771]
[1742537105375,27.57825797,128.41,128.38,7.84527771]
[1742537105769,35.36915797,128.41,128.38,7.84527771]
[1742537106272,27.57825797,128.41,128.39,7.7915]
[1742537108075,27.57825797,128.41,128.38,19.98453217]
[1742537108270,35.36885797,128.41,128.38,7.84507771]
[1742537108672,35.36885797,128.41,128.38,0.05307771]
[1742537110280,27.57825797,128.41,128.38,7.84507771]
[1742537110782,27.57825797,128.41,128.39,7.7916]
[1742537113788,35.36875797,128.41,128.39,7.7916]
[1742537114285,27.57825797,128.41,128.4,7.7911]
[1742537114485,0.05825797,128.41,128.4,7.7911]
[1742537117784,0.05825797,128.41,128.39,19.93075446]
[1742537118085,0.05825797,128.41,128.38,0.05307771]
[1742537118579,0.05825797,128.41,128.39,12.13945446]
[1742537119180,0.05825797,128.41,128.4,12.13945446]
[1742537119487,0.05825797,128.41,128.4,19.93055446]
[1742537135397,0.05825797,128.41,128.4,7.7911]
[1742537138004,0.05825797,128.41,128.39,19.93085446]
[1742537138209,0.05825797,128.41,128.38,12.19253217]
[1742537138403,27.57825797,128.41,128.38,0.05307771]
[1742537139095,35.36925797,128.41,128.38,7.84497771]
[1742537139506,35.36925797,128.41,128.38,0.05307771]
[1742537140301,27.57825797,128.41,128.39,7.7917]
[1742537142300,35.36875797,128.41,128.39,7.7917]
[1742537143708,35.36875797,128.41,128.38,19.98453217]
[1742537143909,7.7911,128.4,128.38,19.98453217]
[1742537144307,27.57825797,128.41,128.38,19.98453217]
[1742537144508,35.36915797,128.41,128.38,19.98453217]
[1742537147914,27.57825797,128.41,128.38,0.05307771]
[1742537148118,39.71771243,128.41,128.38,0.05307771]
[1742537148315,42.79971243,128.41,128.38,0.05307771]
[1742537148721,7.7917,128.39,128.38,0.05307771]
[1742537149018,12.13945446,128.39,128.32,12.13945446]
[1742537149220,7.7936,128.36,128.33,7.795]
[1742537149421,7.7936,128.36,128.32,12.13945446]
[1742537149609,12.13945446,128.37,128.32,12.13945446]
[1742537149815,12.13945446,128.36,128.31,303.41123464]
[1742537150017,27.52,128.35,128.33,0.0542766]
[1742537150519,35.3144,128.35,128.33,0.0542766]
[1742537151216,7.7947,128.34,128.31,291.27178018]
[1742537151516,12.13945446,128.34,128.31,10.81178018]
[1742537151921,19.93415446,128.34,128.31,10.81178018]
[1742537152312,12.13945446,128.34,128.31,10.81178018]
[1742537152516,53.79625446,128.35,128.31,18.66720673]
[1742537152821,53.79625446,128.35,128.31,7.85542655]
[1742537153222,19.93445446,128.34,128.31,0.05902655]
[1742537154315,19.93485446,128.33,128.31,0.05902655]
[1742537154511,39.67945446,128.32,128.27,12.13945446]
[1742537154722,39.67945446,128.31,128.26,292.63945446]
[1742537155018,27.54,128.3,128.26,292.63945446]
[1742537155418,27.54,128.3,128.28,7.7983]
[1742537155623,27.54,128.3,128.27,0.05015051]
[1742537155624,12.13945446,128.29,128.27,0.05015051]
[1742537155925,12.13945446,128.28,128.23,12.13945446]
[1742537156220,3.24005774,128.29,128.21,351.03444907]
[1742537156221,139.32555446,128.29,128.27,0.05096601]
[1742537156519,0.04992065,128.27,128.25,7.7997]
[1742537157023,0.04992065,128.27,128.25,7.85029844]
[1742537157925,0.04992065,128.27,128.26,7.7996]
[1742537158721,0.04992065,128.27,128.25,7.85049844]
[1742537159226,0.04992065,128.27,128.26,7.7996]
[1742537160520,0.04992065,128.27,128.25,7.85049844]
[1742537160927,0.04992065,128.27,128.25,0.05059844]
[1742537161827,0.04992065,128.27,128.26,7.7996]
[1742537162025,0.04992065,128.27,128.26,19.93905446]
[1742537163629,0.04992065,128.27,128.26,7.7996]
[1742537164328,0.04992065,128.27,128.25,7.85049844]
[1742537167730,12.13945446,128.26,128.25,0.05059844]
[1742537167928,12.13945446,128.26,128.23,7.8012]
[1742537168131,12.13945446,128.25,128.23,7.8012]
[1742537169129,12.13945446,128.25,128.23,7.85460081]
[1742537169630,12.13945446,128.25,128.23,0.05340081]
[1742537170428,27.56,128.24,128.23,0.05340081]
[1742537172331,27.56,128.24,128.23,7.85480081]
[1742537173531,27.56,128.24,128.23,0.05340081]
[1742537180141,27.56,128.24,128.23,7.85480081]
[1742537183343,27.56,128.26,128.25,7.7999]
[1742537183737,3.22252065,128.27,128.25,7.7999]
[1742537184042,3.22252065,128.27,128.23,12.19285527]
[1742537184238,3.22252065,128.27,128.23,0.05340081]
[1742537184437,15.36197511,128.27,128.23,0.05340081]
[1742537184637,15.36197511,128.27,128.23,7.85450081]
[1742537185238,12.13945446,128.25,128.23,0.05340081]
[1742537185437,39.69945446,128.25,128.23,0.05340081]
[1742537185840,47.49965446,128.25,128.23,0.05340081]
[1742537186638,7.8008,128.24,128.23,0.05340081]
[1742537187139,19.94085446,128.23,128.2,7.803]
[1742537187340,12.13945446,128.24,128.19,12.13945446]
[1742537187642,15.17525446,128.24,128.19,12.13945446]
[1742537187844,7.8021,128.22,128.19,19.94305446]
[1742537188044,35.3621,128.22,128.19,19.94305446]
[1742537188350,35.42160918,128.22,128.19,20.00120836]
[1742537190749,7.8028,128.21,128.19,12.19760836]
[1742537191042,39.75896364,128.22,128.19,0.0581539]
[1742537191342,12.13945446,128.2,128.13,12.13945446]
[1742537191648,12.13945446,128.18,128.13,12.13945446]
[1742537191944,12.13945446,128.18,128.14,7.8066]
[1742537192542,0.05333133,128.17,128.15,0.05687075]
[1742537193449,0.05333133,128.17,128.15,7.86317075]
[1742537196450,27.56,128.16,128.15,7.86317075]
[1742537200151,0.05333133,128.17,128.16,7.8057]
[1742537205351,0.05333133,128.17,128.15,0.05687075]
[1742537205555,12.19278579,128.17,128.15,0.05687075]
[1742537206448,0.05333133,128.17,128.15,12.19632521]
[1742537206753,0.05333133,128.17,128.16,7.8057]
[1742537209053,0.05333133,128.17,128.16,19.94515446]
[1742537218755,27.56,128.22,128.21,7.8023]
[1742537219164,27.56,128.22,128.2,7.8029]
[1742537219861,27.61606016,128.22,128.2,7.85284667]
[1742537220658,35.41806016,128.22,128.2,7.85284667]
[1742537220859,27.61606016,128.22,128.2,7.85284667]
[1742537221855,27.61606016,128.22,128.21,7.8026]
[1742537222059,0.05606016,128.22,128.21,7.8026]
[1742537224058,0.05606016,128.22,128.21,19.94205446]
[1742537227059,27.56,128.26,128.25,7.7999]
[1742537230066,35.3597,128.26,128.24,0.05721782]
[1742537230667,7.7997,128.26,128.24,0.05721782]
[1742537230867,35.3597,128.26,128.24,0.05721782]
[1742537232570,27.56,128.26,128.24,7.85801782]
[1742537233166,27.56,128.26,128.25,7.8002]
[1742537234174,35.3596,128.26,128.24,0.05721782]
[1742537234467,27.56,128.26,128.24,0.05721782]
[1742537234659,7.8002,128.25,128.24,0.05721782]
[1742537244378,19.93965446,128.25,128.24,0.05721782]
[1742537244580,7.8023,128.22,128.19,12.13945446]
[1742537244776,27.56,128.22,128.18,12.13945446]
[1742537244974,7.8039,128.19,128.16,12.13945446]
[1742537245475,7.8035,128.2,128.16,12.13945446]
[1742537245677,0.05709494,128.19,128.17,12.13945446]
[1742537246078,0.05709494,128.19,128.18,7.8044]
[1742537252286,0.05709494,128.19,128.17,19.94425446]
[1742537252488,0.05709494,128.19,128.17,12.13945446]
[1742537252885,0.05709494,128.19,128.17,19.94405446]
[1742537253685,0.05709494,128.19,128.18,7.8044]
[1742537254784,27.61709494,128.19,128.16,0.05507891]
[1742537255183,30.85659494,128.19,128.16,0.05507891]
[1742537255384,33.99619494,128.19,128.16,0.05507891]
[1742537255587,7.8051,128.17,128.16,0.05507891]
[1742537259476,7.8051,128.17,128.1,280.9]
[1742537259477,12.13945446,128.17,128.1,293.03945446]
[1742537259686,12.13945446,128.15,128.1,320.59945446]
[1742537259888,12.13945446,128.15,128.11,7.8085]
[1742537260090,7.8072,128.14,128.11,7.8085]
[1742537260584,7.8076,128.13,128.11,12.13945446]
[1742537260789,7.8076,128.13,128.11,0.05162388]
[1742537260984,0.05784783,128.14,128.11,0.05162388]
[1742537261387,0.05784783,128.14,128.11,7.86002388]
[1742537263097,27.56,128.13,128.11,0.05162388]
[1742537263687,7.8081,128.12,128.11,0.05162388]
[1742537263891,12.13945446,128.12,128.04,42.95444907]
[1742537264090,12.13945446,128.07,128.04,42.95444907]
[1742537264293,29.04,128.07,128.04,55.09390353]
[1742537264587,29.04,128.07,128.04,12.13945446]
[1742537264792,29.04,128.09,128.05,12.13945446]
[1742537264983,0.05463166,128.07,128.05,12.13945446]
[1742537265186,0.05463166,128.07,128.06,7.8114]
[1742537265380,0.05463166,128.07,128.05,12.13945446]
[1742537265584,0.05463166,128.07,128.04,0.04973364]
[1742537265787,29.06,128.06,128.04,0.04973364]
[1742537265986,41.19945446,128.06,128.04,0.04973364]
[1742537266393,7.8124,128.05,128.02,10.81178018]
[1742537266587,41.19945446,128.06,128.02,10.81178018]
[1742537266588,12.13945446,128.04,128.02,10.81178018]
[1742537266783,29.18,128.03,128.02,10.81178018]
[1742537268801,29.18,128.03,128.0,12.13945446]
[1742537269393,29.18,128.03,128.0,19.95435446]
[1742537269902,29.18,128.03,128.0,12.13945446]
[1742537270599,29.18,128.03,127.98,12.13945446]
[1742537270787,12.13945446,128.02,127.97,12.13945446]
[1742537270987,12.19240776,128.02,127.98,7.8163]
[1742537271800,12.19240776,128.02,127.96,293.09945446]
[1742537272098,12.19240776,128.02,127.98,7.8163]
[1742537272789,12.19240776,128.02,127.99,7.8159]
[1742537273895,0.0529533,128.02,127.93,15.28815446]
[1742537274100,12.13945446,128.0,127.95,12.13945446]
[1742537274298,29.28,127.99,127.98,7.8166]
[1742537274505,29.33210193,127.99,127.98,7.8166]
[1742537274801,0.05210193,127.99,127.98,7.8166]
[1742537278799,0.05210193,127.99,127.98,19.95605446]
[1742537279295,0.05210193,127.99,127.98,7.8166]
[1742537280305,0.05210193,127.99,127.98,19.95605446]
[1742537280806,12.13945446,128.05,127.98,41.31945446]
[1742537281006,41.31945446,128.05,128.01,12.13945446]
[1742537281399,41.31945446,128.05,128.03,7.8132]
[1742537281795,41.36867734,128.05,128.03,7.86721377]
[1742537282002,12.18867734,128.05,128.04,7.813]
[1742537282599,12.18867734,128.05,128.03,0.05401377]
[1742537283708,12.18867734,128.05,128.03,7.86751377]
[1742537283908,0.04922288,128.05,128.03,7.86751377]
[1742537284701,0.04922288,128.05,128.03,0.05401377]
[1742537285098,7.86162288,128.05,128.03,0.05401377]
[1742537285303,0.04922288,128.05,128.03,0.05401377]
[1742537285503,12.18867734,128.05,128.03,0.05401377]
[1742537285805,20.00107734,128.05,128.03,0.05401377]
[1742537286001,12.13945446,128.04,128.03,0.05401377]
[1742537286396,0.04922288,128.05,128.03,0.05401377]
[1742537287106,12.13945446,128.04,127.97,12.13945446]
[1742537287302,3.0634,128.08,127.97,12.13945446]
[1742537287303,41.23945446,128.03,127.97,12.13945446]
[1742537287607,29.12,128.02,127.99,12.13945446]
[1742537287809,29.1,128.04,127.99,12.13945446]
[1742537288010,19.95215446,128.05,128.01,7.8145]
[1742537288309,0.05188841,128.03,128.0,12.13945446]
[1742537288507,0.05188841,128.03,128.02,7.8142]
[1742537288910,0.05188841,128.03,128.02,19.95365446]
[1742537289708,0.05188841,128.03,128.01,7.8146]
[1742537290303,0.05188841,128.03,128.0,19.95455446]
[1742537290711,7.86578841,128.03,128.0,19.95455446]
[1742537291106,0.05188841,128.03,128.0,12.13945446]
[1742537291309,0.05188841,128.03,128.02,12.13945446]
[1742537291503,0.05188841,128.03,128.02,19.95365446]
[1742537297114,0.05188841,128.03,128.02,7.8142]
[1742537300718,41.05945446,128.09,128.01,12.13945446]
[1742537300905,7.8111,128.07,128.04,12.13945446]
[1742537301217,41.05945446,128.09,128.05,7.8122]
[1742537301405,41.05945446,128.09,128.04,12.13945446]
[1742537301727,7.8112,128.07,128.04,12.13945446]
[1742537301913,41.03945446,128.06,128.05,0.05170207]
[1742537302114,41.03945446,128.06,128.01,12.13945446]
[1742537302411,41.03945446,128.06,128.04,0.05418598]
[1742537302617,28.9,128.06,128.04,0.05418598]
[1742537303014,28.9,128.06,128.04,7.86688598]
[1742537303615,28.9,128.06,128.05,7.8124]
[1742537304019,0.05312578,128.07,128.04,0.05418598]
[1742537304420,0.05312578,128.07,128.06,7.8118]
[1742537314540,0.05312578,128.07,128.06,19.95125446]
[1742537316246,0.05312578,128.07,128.05,19.95135446]
[1742537316436,0.05312578,128.07,128.05,12.13945446]
[1742537316635,0.05312578,128.07,128.06,7.8118]
[1742537317048,0.05312578,128.07,128.05,12.13945446]
[1742537317248,0.05312578,128.07,128.05,19.95155446]
[1742537317750,0.05312578,128.07,128.06,7.8118]
[1742537318546,0.05312578,128.07,128.05,19.95145446]
[1742537319851,0.05312578,128.07,128.05,12.13945446]
[1742537320446,7.86452578,128.07,128.05,12.13945446]
[1742537321553,7.86452578,128.07,128.05,19.95155446]
[1742537322149,7.86452578,128.07,128.05,12.13945446]
[1742537322454,7.8118,128.06,128.04,7.86688598]
[1742537323548,7.8118,128.06,128.04,0.05418598]
[1742537323944,7.8124,128.05,128.04,0.05418598]
[1742537324151,36.3924,128.05,128.04,0.05418598]
[1742537325548,7.8139,128.03,128.0,12.13945446]
[1742537326655,7.87152063,128.03,128.0,12.13945446]
[1742537326855,0.05762063,128.03,128.01,7.8144]
[1742537327055,0.05762063,128.03,128.02,12.13945446]
[1742537327356,0.05762063,128.03,128.02,19.95365446]
[1742537338859,0.05762063,128.03,128.02,12.13945446]
[1742537339062,0.05762063,128.03,128.0,12.13945446]
[1742537339366,7.87162063,128.03,128.0,19.95455446]
[1742537339954,0.05762063,128.03,128.01,7.8147]
[1742537341164,7.87162063,128.03,128.01,7.8147]
[1742537341369,7.87162063,128.03,128.0,19.95455446]
[1742537341866,7.87162063,128.03,128.01,7.8147]
[1742537343667,7.8145,128.02,128.0,19.95465446]
[1742537344863,7.87152063,128.03,128.01,7.8147]
[1742537345462,7.87152063,128.03,128.0,19.95455446]
[1742537345977,7.8143,128.02,128.0,19.95455446]
[1742537346172,0.05762063,128.03,127.99,7.816]
[1742537346565,12.13945446,128.02,127.98,12.13945446]
[1742537346769,28.4,128.01,127.97,281.2]
[1742537347273,28.4,128.01,127.96,12.13945446]
[1742537347274,0.05001111,128.0,127.96,12.13945446]
[1742537347873,7.86571111,128.0,127.97,7.8169]
[1742537349080,7.816,127.99,127.97,7.8169]
[1742537349275,7.816,127.99,127.96,19.95695446]
[1742537349472,28.42,127.98,127.96,19.95695446]
[1742537349774,36.2367,127.98,127.96,12.13945446]
[1742537349973,36.2367,127.98,127.95,7.8182]
[1742537350479,28.42,127.98,127.96,7.8176]
[1742537350869,28.47809396,127.98,127.96,7.8176]
[1742537351265,28.47809396,127.98,127.97,7.8173]
[1742537351468,0.05809396,127.98,127.97,7.8173]
[1742537357779,3.3199,128.04,127.96,40.51945446]
[1742537358083,31.3989,128.05,128.01,12.13945446]
[1742537358381,31.3989,128.05,128.03,7.8131]
[1742537359085,31.45132423,128.05,128.04,7.813]
[1742537359394,3.13132423,128.05,128.04,7.813]
[1742537359984,0.05242423,128.05,128.04,7.813]
[1742537360180,0.05242423,128.05,128.04,19.95245446]
[1742537361285,0.05242423,128.05,128.04,7.813]
[1742537362185,0.05242423,128.05,128.03,12.19480245]
[1742537362186,0.05242423,128.05,128.03,20.00810245]
[1742537362785,0.05242423,128.05,128.04,7.813]
[1742537377100,28.2,128.08,128.06,7.8113]
[1742537377500,28.2,128.08,128.06,7.8114]
[1742537377799,51.36985446,128.09,128.06,7.8114]
[1742537378196,51.42542843,128.09,128.07,7.8111]
[1742537378901,51.42542843,128.09,128.06,7.86515198]
[1742537379102,7.8106,128.08,128.06,7.86515198]
[1742537380507,7.8106,128.08,128.06,0.05375198]
[1742537380704,7.8111,128.07,128.06,0.05375198]
[1742537381606,35.9511,128.07,128.06,0.05375198]
[1742537382309,7.8125,128.05,128.03,19.95265446]
[1742537382511,28.14,128.07,128.04,7.8129]
[1742537383005,28.14,128.07,128.03,12.13945446]
[1742537383206,28.14,128.07,128.03,19.95295446]
[1742537383611,0.05798546,128.06,128.04,0.0555411]
[1742537384314,7.8126,128.05,128.04,0.0555411]
[1742537384808,0.05798546,128.06,128.04,0.0555411]
[1742537386613,7.8124,128.05,128.04,0.0555411]
[1742537389917,12.13945446,128.05,128.01,12.13945446]
[1742537390117,28.06,128.04,128.0,281.24]
[1742537390515,7.8139,128.03,128.0,281.24]
[1742537391019,7.8139,128.03,128.0,7.8152]
[1742537391217,7.86475902,128.03,128.0,7.8152]
[1742537391718,7.8143,128.02,128.0,7.8152]
[1742537392316,7.8143,128.02,127.99,19.95515446]
[1742537392911,7.8143,128.02,127.99,12.13945446]
[1742537393116,7.86465902,128.03,128.0,7.8153]
[1742537393921,7.86465902,128.03,128.01,7.8147]
[1742537394312,0.05085902,128.03,128.01,7.8147]
[1742537394818,0.05085902,128.03,128.0,7.8151]
[1742537395120,0.05085902,128.03,127.99,12.13945446]
[1742537395619,0.05085902,128.03,128.01,7.8145]
[1742537396025,7.86455902,128.03,128.01,7.8145]
[1742537397822,0.05085902,128.03,128.01,7.8145]
[1742537399023,7.86475902,128.03,128.01,7.8145]
[1742537399415,7.86475902,128.03,128.0,7.8151]
[1742537400223,7.86475902,128.03,128.01,7.8148]
[1742537401922,0.05085902,128.03,128.01,7.8148]
[1742537402127,0.05085902,128.03,128.02,7.8142]
[1742537410537,28.0,128.07,128.05,7.812]
[1742537411540,28.0,128.07,128.04,12.13945446]
[1742537411839,28.05190518,128.07,128.05,0.04948368]
[1742537412031,28.05190518,128.07,128.03,12.13945446]
[1742537412230,28.05190518,128.07,128.05,0.05521138]